fUSD/lending_fUSD_20240422
["ID","MTS","AMOUNT","RATE_DAILY","PERIOD"]
[323209128,1713817837862,-1140.53,0.00011245,2]
[323209129,1713817837874,-150.0,0.00011253,2]
[323209130,1713817837884,-7695.83587206,0.00011305,2]
[323209131,1713817837894,-357.09229288,0.00011389,2]
[323209132,1713817837903,-7695.83587206,0.00011464,2]
[323209133,1713817837912,-227.12122378,0.00011586,2]
[323209134,1713817837923,-324.38797327,0.00011586,2]
[323209135,1713817837934,-600.0,0.00011587,2]
[323209136,1713817837943,-749.4695907,0.0001159,2]
[323209137,1713817837953,-7695.83587206,0.00011624,2]
[323209138,1713817837961,-169.38,0.0001176,2]
[323209139,1713817837971,-7695.83587206,0.00011783,2]
[323209141,1713817837980,-2500.0,0.00011786,2]
[323209142,1713817837989,-2500.0,0.00011786,2]
[323209143,1713817837999,-150.23,0.00011869,2]
[323209144,1713817838008,-583.52,0.00011938,2]
[323209145,1713817838017,-7695.83587206,0.00011943,2]
[323209146,1713817838026,-2750.0,0.00012,2]
[323209147,1713817838036,-19499.51467127,0.00012,2]
[323209148,1713817838045,-910.03,0.00012055,2]
[323209149,1713817838055,-821.1,0.00012055,2]
[323209150,1713817838064,-413.42,0.00012055,2]
[323209151,1713817838074,-910.03,0.00012055,2]
[323209152,1713817838084,-413.42,0.00012055,2]
[323209153,1713817838093,-910.03,0.00012055,2]
[323209154,1713817838103,-413.42,0.00012055,2]
[323209155,1713817838112,-903.18,0.00012055,2]
[323209156,1713817838122,-411.3,0.00012055,2]
[323209157,1713817838131,-976.5,0.00012055,2]
[323209158,1713817838141,-7695.83587206,0.00012102,2]
[323209159,1713817838150,-412.89,0.00012137,2]
[323209160,1713817838159,-910.03,0.00012137,2]
[323209161,1713817838168,-910.03,0.00012137,2]
[323209162,1713817838177,-1425.86,0.00012137,2]
[323209163,1713817838188,-350.38,0.00012192,2]
[323209164,1713817838198,-350.38,0.00012192,2]
[323209165,1713817838207,-521.95,0.00012192,2]
[323209166,1713817838217,-837.33,0.00012192,2]
[323209167,1713817838226,-150.0,0.00012192,2]
[323209168,1713817838235,-350.38,0.00012192,2]
[323209169,1713817838244,-521.95,0.00012192,2]
[323209170,1713817838254,-150.0,0.00012192,2]
[323209171,1713817838263,-350.38,0.00012192,2]
[323209172,1713817838272,-150.0,0.00012192,2]
[323209173,1713817838281,-521.95,0.00012192,2]
[323209174,1713817838290,-350.38,0.00012192,2]
[323209175,1713817838299,-521.95,0.00012192,2]
[323209176,1713817838308,-350.38,0.00012192,2]
[323209177,1713817838317,-521.95,0.00012192,2]
[323209178,1713817838326,-350.38,0.00012192,2]
[323209179,1713817838335,-521.95,0.00012192,2]
[323209180,1713817838344,-350.38,0.00012192,2]
[323209181,1713817838353,-521.95,0.00012192,2]
[323209182,1713817838362,-600.96,0.00012192,2]
[323209183,1713817838371,-1293.62492362,0.00012234,2]
[323209184,1713817838381,-7695.83587206,0.00012262,2]
[323209185,1713817838390,-10000.0,0.00012291,2]
[323209186,1713817838400,-10000.0,0.00012328,2]
[323209187,1713817838410,-3703.11529181,0.00012328,2]
[323209188,1713817838419,-7695.83587206,0.00012421,2]
[323209189,1713817838429,-1000.0,0.00012431,2]
[323209190,1713817838440,-1000.0,0.00012498,2]
[323209191,1713817838449,-500.0,0.00012498,2]
[323209192,1713817838458,-649.0,0.000125,2]
[323209193,1713817838467,-649.0,0.000125,2]
[323209194,1713817838476,-649.0,0.000125,2]
[323209195,1713817838486,-649.0,0.000125,2]
[323209196,1713817838496,-649.0,0.000125,2]
[323209197,1713817838505,-649.0,0.000125,2]
[323209198,1713817838515,-649.0,0.000125,2]
[323209199,1713817838524,-649.0,0.000125,2]
[323209200,1713817838534,-649.0,0.000125,2]
[323209201,1713817838543,-649.0,0.000125,2]
[323209202,1713817838553,-1000.0,0.00012531,2]
[323209203,1713817838561,-167.03115323,0.0001254,2]
[323209204,1713817838571,-2500.0,0.0001254,2]
[323209205,1713817838580,-1221.59250652,0.0001255,2]
[323209206,1713817838589,-1000.0,0.00012565,2]
[323209207,1713817838598,-500.0,0.00012565,2]
[323209208,1713817838607,-3272.23,0.00012566,2]
[323209209,1713817838616,-26133.3351,0.00012567,2]
[323209210,1713817838625,-35034.41904725,0.00012567,2]
[323209211,1713817838923,-40260.05725275,0.00012567,2]
[323209212,1713817838935,-765.4445,0.00012567,2]
[323209213,1713817838944,-7695.83587206,0.00012581,2]
[323209214,1713817838954,-969.229,0.00012602,2]
[323209215,1713817838964,-1393.0,0.00012602,2]
[323209216,1713817838973,-1055.0,0.00012602,2]
[323209217,1713817838982,-3547.7547761,0.00012657,2]
[323209218,1713817838993,-4648.8586369,0.00012657,2]
[323209219,1713817839003,-282.447332,0.00012657,2]
[323209220,1713817839013,-23488.5963863,0.00012657,2]
[323209221,1713817839023,-17754.6882941,0.00012657,2]
[323209222,1713817839032,-207.005095,0.00012666,2]
[323209223,1713817839041,-5839.15642345,0.00012666,2]
[323209224,1713817839051,-3000.0,0.00012667,2]
[323209225,1713817839061,-445.0,0.000127,2]
[323209226,1713817839071,-1000.0,0.000127,2]
[323209227,1713817839081,-2353.59888122,0.00012737,2]
[323209228,1713817839091,-7695.83587206,0.0001274,2]
[323209229,1713817839101,-290.97,0.00012743,2]
[323209230,1713817839111,-520.59,0.00012743,2]
[323209231,1713817839120,-173.31562883,0.00012778,2]
[323209232,1713817839130,-227.7185082,0.00012784,2]
[323209233,1713817839139,-173.80588472,0.00012784,2]
[323209234,1713817839149,-76423.11075129,0.000128,5]
[323209235,1713817839158,-571.0538058,0.000128,2]
[323209236,1713817839168,-1506.0,0.000128,2]
[323209237,1713817839177,-217.65,0.0001284,2]
[323209238,1713817839188,-1228.0,0.00012851,2]
[323209239,1713817839197,-609.0,0.00012851,2]
[323209240,1713817839206,-1858.0,0.00012851,2]
[323209241,1713817839216,-257.0,0.00012851,2]
[323209242,1713817839225,-807.0,0.00012851,2]
[323209243,1713817839234,-437.0,0.00012851,2]
[323209244,1713817839244,-297.7,0.00012851,2]
[323209245,1713817839253,-2445.0,0.00012851,2]
[323209246,1713817839262,-1474.0,0.00012851,2]
[323209247,1713817839272,-427.139,0.00012851,2]
[323209248,1713817839281,-3228.615,0.00012851,2]
[323209249,1713817839291,-242.856,0.00012851,2]
[323209250,1713817839300,-204.025,0.00012851,2]
[323209251,1713817839309,-227.0,0.00012851,2]
[323209252,1713817839318,-1640.0,0.00012851,2]
[323209253,1713817839327,-1140.0,0.00012851,2]
[323209254,1713817839336,-195.0,0.00012851,2]
[323209255,1713817839346,-449.655,0.00012851,2]
[323209256,1713817839355,-2705.0,0.00012851,2]
[323209257,1713817839365,-37689.0,0.00012851,2]
[323209258,1713817839375,-5893.0,0.00012851,2]
[323209259,1713817839384,-5729.0,0.00012851,2]
[323209260,1713817839393,-462.0,0.00012851,2]
[323209261,1713817839402,-2295.0,0.00012851,2]
[323209263,1713817839413,-386.87578563,0.00012864,2]
[323209264,1713817839423,-155.0,0.00012865,2]
[323209266,1713817839434,-306.62387882,0.00012866,2]
[323209267,1713817839443,-1969.3761085,0.0001287,2]
[323209268,1713817839453,-1000.0,0.0001287,2]
[323209269,1713817839464,-696.0,0.00012877,2]
[323209270,1713817839474,-193.32331842,0.00012878,2]
[323209271,1713817839484,-359.18860075,0.00012878,2]
[323209273,1713817839493,-709.78541386,0.00012878,2]
[323209275,1713817839503,-1242.54447643,0.00012878,2]
[323209276,1713817839514,-385.82293825,0.00012878,2]
[323209277,1713817839524,-164.06127311,0.00012878,2]
[323209278,1713817839534,-1313.84130949,0.00012878,2]
[323209280,1713817839543,-2318.1301147,0.00012878,2]
[323209283,1713817839553,-3204.54915056,0.00012878,2]
[323209285,1713817839563,-3715.15192631,0.00012878,2]
[323209286,1713817839572,-1069.37745594,0.00012878,2]
[323209287,1713817839581,-12885.05,0.00012879,2]
[323209288,1713817839591,-516.60266984,0.00012879,2]
[323209289,1713817839600,-973021.87877008,0.0001288,2]
[323209290,1713817839657,-281.68,0.0001288,2]
[323209291,1713817839669,-304.0,0.0001288,2]
[323209292,1713817839683,-6715.718004,0.0001288,2]
[323209293,1713817839696,-1910.5,0.0001288,2]
[323209294,1713817839708,-26140.69974989,0.0001288,2]
[323209295,1713817839717,-150.0,0.00012885,2]
[323209296,1713817839727,-11991.39,0.00012893,2]
[323209297,1713817839737,-1000.0,0.000129,2]
[323209298,1713817839746,-7695.83587206,0.000129,2]
[323209299,1713817839756,-1000.0,0.000129,2]
[323209300,1713817839766,-4050.95946659,0.000129,2]
[323209301,1713817839777,-4050.95946659,0.000129,2]
[323209302,1713817839786,-4050.95946659,0.000129,2]
[323209303,1713817839796,-4050.95946659,0.000129,2]
[323209304,1713817839807,-1252.6288,0.000129,2]
[323209305,1713817839818,-2554.46789617,0.0001295,2]
[323209306,1713817839827,-1000.0,0.0001297,2]
[323209307,1713817839838,-1000.0,0.0001297,2]
[323209308,1713817839849,-931.30766592,0.0001297,2]
[323209309,1713817839858,-1000.0,0.0001297,2]
[323209310,1713817839868,-500.0,0.0001297,2]
[323209311,1713817839878,-500.0,0.0001297,2]
[323209312,1713817839888,-227.71850818,0.00012988,2]
[323209313,1713817839897,-3932.2902709,0.00012991,2]
[323209314,1713817839906,-5136.0383709,0.00012991,2]
[323209315,1713817839915,-5623.2181049,0.00012991,2]
[323209316,1713817839928,-312.0465578,0.00012991,2]
[323209317,1713817839939,-341.6457835,0.00012991,2]
[323209318,1713817839948,-26034.4879723,0.00012991,2]
[323209319,1713817839960,-28580.3795582,0.00012991,2]
[323209320,1713817839969,-16794.1786956,0.00012991,2]
[323209321,1713817839978,-15833.6690971,0.00012991,2]
[323209322,1713817839989,-239.3434682,0.00012998,2]
[323209323,1713817839999,-155.48761375,0.00012998,2]
[323209324,1713817840008,-156.01797415,0.00012998,2]
[323209325,1713817840018,-9629.48528406,0.00012998,2]
[323209326,1713817840028,-156.40973482,0.00012998,2]
[323209327,1713817840038,-155.2599321,0.00012998,2]
[323209328,1713817840047,-260.89294625,0.00012998,2]
[323209329,1713817840056,-155.0,0.00012998,2]
[323209330,1713817840065,-190.99719088,0.00012998,2]
[323209331,1713817840075,-200.63852202,0.00012998,2]
[323209332,1713817840084,-155.56538191,0.00012998,2]
[323209333,1713817840093,-155.0,0.00012998,2]
[323209334,1713817840103,-223.21569159,0.00012998,2]
[323209335,1713817840112,-155.96289677,0.00012998,2]
[323209336,1713817840121,-155.65040781,0.00012998,2]
[323209337,1713817840131,-155.0,0.00012998,2]
[323209338,1713817840141,-155.0,0.00012998,2]
[323209339,1713817840151,-155.51813378,0.00012998,2]
[323209340,1713817840160,-5088.90360486,0.00012998,2]
[323209341,1713817840170,-118720.06810455,0.00013,2]
[323209342,1713817840204,-1455846.05270692,0.00013,2]
[323209343,1713817840216,-2793.32555,0.00013,2]
[323209344,1713817840227,-376.17167403,0.00013,2]
[323209345,1713817840239,-3577.80730142,0.00013,2]
[323209346,1713817840250,-3176.93985369,0.00013,2]
[323209347,1713817840262,-9840.98129079,0.00013,2]
[323209348,1713817840274,-1601.74078846,0.00013,2]
[323209349,1713817840349,-549.90506994,0.00013,2]
[323209354,1713817841075,-6017.90005343,0.00012291,2]
[323209355,1713817841087,-1010.0,0.00012291,2]
[323209356,1713817841118,-348.96034067,0.00012291,2]
[323209357,1713817841149,-1763.41651776,0.00012291,2]
[323209358,1713817841161,-859.72308814,0.00012291,2]
[323209359,1713817841171,-541.0,0.00012602,2]
[323209360,1713817841181,-315.19937261,0.00013,2]
[323209361,1713817841195,-309.8929948,0.00013,2]
[323209362,1713817841207,-1439.59000001,0.00013,2]
[323209395,1713817844111,-1256.0,0.00012606,2]
[323209396,1713817844120,-1686530.12859589,0.00013,2]
[323209397,1713817844130,-2387503.01233304,0.00013,2]
[323209398,1713817844140,-1000.0,0.00013,2]
[323209399,1713817844149,-153.49,0.00013014,2]
[323209400,1713817844158,-599.16,0.00013014,2]
[323209401,1713817844167,-173.31562882,0.00013051,2]
[323209402,1713817844176,-2500.0,0.0001307,2]
[323209403,1713817844186,-4257.8,0.00013075,2]
[323209404,1713817844195,-292.15,0.00013138,2]
[323209405,1713817844205,-150.23,0.00013187,2]
[323209406,1713817844214,-227.71850818,0.00013191,2]
[323209407,1713817844223,-583.52,0.00013264,2]
[323209408,1713817844231,-250000.0,0.000133,2]
[323209409,1713817844242,-2500.0,0.00013304,2]
[323209410,1713817844252,-173.31562882,0.00013325,2]
[323209411,1713817844261,-6311.13,0.00013391,2]
[323209412,1713817844271,-227.71850818,0.00013395,2]
[323209413,1713817844280,-500.0,0.00013425,2]
[323209414,1713817844289,-1543.0,0.00013452,2]
[323209415,1713817844298,-559.0,0.00013452,2]
[323209416,1713817844308,-2500.0,0.00013476,2]
[323209417,1713817844317,-150.0,0.00013497,2]
[323209418,1713817844326,-21701.15,0.0001354,2]
[323209419,1713817844335,-150.0,0.00013584,2]
[323209420,1713817844344,-227.71850818,0.00013598,2]
[323209421,1713817844353,-173.31562882,0.00013598,2]
[323209422,1713817844363,-795.71390371,0.000136,2]
[323209423,1713817844372,-173.80588472,0.00013602,2]
[323209424,1713817844381,-1000.0,0.0001367,2]
[323209425,1713817844390,-500.0,0.0001367,2]
[323209426,1713817844399,-6110.3978388,0.00013689,2]
[323209427,1713817844408,-371.2450092,0.00013689,2]
[323209428,1713817844417,-31126.2711442,0.00013689,2]
[323209429,1713817844426,-14873.1594987,0.00013689,2]
[323209430,1713817844437,-1058.97,0.00013698,2]
[323209431,1713817844446,-500.0,0.00013698,2]
[323209432,1713817844455,-500.0,0.00013698,2]
[323209433,1713817844464,-500.0,0.00013698,2]
[323209434,1713817844473,-500.0,0.00013698,2]
[323209435,1713817844482,-500.0,0.00013698,2]
[323209436,1713817844491,-500.0,0.00013698,2]
[323209437,1713817844501,-500.33304759,0.00013698,2]
[323209438,1713817844510,-500.0,0.00013698,2]
[323209439,1713817844519,-500.0,0.00013698,2]
[323209440,1713817844528,-500.0,0.00013698,2]
[323209441,1713817844536,-500.0,0.00013698,2]
[323209442,1713817844545,-500.0,0.00013698,2]
[323209443,1713817844555,-500.0,0.00013698,2]
[323209444,1713817844564,-176.53424582,0.00013698,2]
[323209445,1713817844573,-500.0,0.00013698,2]
[323209446,1713817844584,-500.0,0.00013698,2]
[323209447,1713817844593,-501.41570883,0.00013698,2]
[323209448,1713817844602,-500.0,0.00013698,2]
[323209449,1713817844611,-500.0,0.00013698,2]
[323209450,1713817844621,-500.0,0.00013698,2]
[323209451,1713817844631,-500.0,0.00013698,2]
[323209452,1713817844641,-500.0,0.00013698,2]
[323209453,1713817844652,-500.0,0.00013698,2]
[323209454,1713817844662,-500.0,0.00013698,2]
[323209455,1713817844670,-537.63894474,0.00013698,2]
[323209456,1713817844680,-500.0,0.00013698,2]
[323209457,1713817844690,-500.0,0.00013698,2]
[323209458,1713817844700,-500.0,0.00013698,2]
[323209459,1713817844708,-500.0,0.00013698,2]
[323209460,1713817844717,-500.0,0.00013698,2]
[323209461,1713817844727,-500.0,0.00013698,2]
[323209462,1713817844735,-500.0,0.00013698,2]
[323209463,1713817844745,-500.0,0.00013698,2]
[323209464,1713817844754,-500.0,0.00013698,2]
[323209465,1713817844764,-500.0,0.00013698,2]
[323209466,1713817844773,-500.0,0.00013698,2]
[323209467,1713817844782,-500.0,0.00013698,2]
[323209468,1713817844792,-500.0,0.00013698,2]
[323209469,1713817844801,-500.0,0.00013698,2]
[323209470,1713817844812,-500.0,0.00013698,2]
[323209471,1713817844821,-500.0,0.00013698,2]
[323209472,1713817844832,-613.72,0.00013698,2]
[323209473,1713817844845,-500.0,0.00013698,2]
[323209474,1713817844854,-540.41,0.00013698,2]
[323209475,1713817844864,-500.0,0.00013698,2]
[323209476,1713817844873,-500.0,0.00013698,2]
[323209477,1713817844883,-500.0,0.00013698,2]
[323209478,1713817844893,-500.0,0.00013698,2]
[323209479,1713817844904,-500.0,0.00013698,2]
[323209480,1713817844914,-500.0,0.00013698,2]
[323209481,1713817844924,-500.0,0.00013698,2]
[323209482,1713817844937,-500.0,0.00013698,2]
[323209483,1713817844948,-500.0,0.00013698,2]
[323209484,1713817844957,-500.0,0.00013698,2]
[323209485,1713817844969,-500.0,0.00013698,2]
[323209486,1713817844978,-500.0,0.00013698,2]
[323209487,1713817844987,-500.0,0.00013698,2]
[323209488,1713817844997,-1669.03,0.00013698,2]
[323209489,1713817845006,-500.0,0.00013698,2]
[323209490,1713817845015,-1371.14,0.00013698,2]
[323209491,1713817845025,-500.0,0.00013698,2]
[323209492,1713817845034,-500.0,0.00013698,2]
[323209493,1713817845044,-500.0,0.00013698,2]
[323209494,1713817845053,-500.0,0.00013698,2]
[323209495,1713817845063,-500.0,0.00013698,2]
[323209496,1713817845072,-500.0,0.00013698,2]
[323209497,1713817845081,-500.0,0.00013698,2]
[323209498,1713817845090,-500.0,0.00013698,2]
[323209499,1713817845100,-500.0,0.00013698,2]
[323209500,1713817845110,-776.94,0.00013698,2]
[323209501,1713817845119,-500.0,0.00013698,2]
[323209502,1713817845129,-587.95,0.00013698,2]
[323209503,1713817845138,-500.0,0.00013698,2]
[323209504,1713817845147,-1126.73,0.00013698,2]
[323209505,1713817845157,-500.0,0.00013698,2]
[323209506,1713817845167,-1027.81,0.00013698,2]
[323209507,1713817845176,-500.0,0.00013698,2]
[323209508,1713817845187,-500.0,0.00013698,2]
[323209509,1713817845196,-895.63,0.00013698,2]
[323209510,1713817845206,-500.0,0.00013698,2]
[323209511,1713817845215,-500.0,0.00013698,2]
[323209512,1713817845224,-500.0,0.00013698,2]
[323209513,1713817845234,-500.0,0.00013698,2]
[323209514,1713817845244,-560.73,0.00013698,2]
[323209515,1713817845253,-500.0,0.00013698,2]
[323209516,1713817845263,-500.0,0.00013698,2]
[323209517,1713817845272,-500.0,0.00013698,2]
[323209518,1713817845281,-541.08,0.00013698,2]
[323209519,1713817845291,-617.0506245,0.00013698,2]
[323209520,1713817845300,-500.0,0.00013698,2]
[323209521,1713817845309,-706.11,0.00013698,2]
[323209522,1713817845319,-629.02,0.00013698,2]
[323209523,1713817845328,-584.95,0.00013698,2]
[323209524,1713817845337,-500.0,0.00013698,2]
[323209525,1713817845347,-500.0,0.00013698,2]
[323209526,1713817845356,-413.62391437,0.00013698,2]
[323209527,1713817845366,-500.0,0.00013698,2]
[323209528,1713817845375,-1117.61,0.00013698,2]
[323209529,1713817845385,-500.0,0.00013698,2]
[323209530,1713817845394,-1070.74,0.00013698,2]
[323209531,1713817845403,-500.0,0.00013698,2]
[323209532,1713817845413,-500.0,0.00013698,2]
[323209533,1713817845423,-1292.86,0.00013698,2]
[323209534,1713817845432,-500.0,0.00013698,2]
[323209535,1713817845442,-500.0,0.00013698,2]
[323209536,1713817845451,-369.92608161,0.00013698,2]
[323209537,1713817845460,-500.0,0.00013698,2]
[323209538,1713817845469,-627.63,0.00013698,2]
[323209540,1713817845785,-1409.26,0.00013698,2]
[323209541,1713817845795,-895.28,0.00013698,2]
[323209542,1713817845806,-500.0,0.00013698,2]
[323209543,1713817845816,-277.35500906,0.00013698,2]
[323209544,1713817845827,-500.0,0.00013698,2]
[323209545,1713817845837,-1508.56,0.00013698,2]
[323209546,1713817845848,-500.0,0.00013698,2]
[323209547,1713817845858,-500.0,0.00013698,2]
[323209550,1713817845868,-500.0,0.00013698,2]
[323209551,1713817845878,-500.0,0.00013698,2]
[323209552,1713817845889,-256.88458664,0.00013698,2]
[323209553,1713817845898,-1031.2,0.00013698,2]
[323209554,1713817845907,-632.96,0.00013698,2]
[323209555,1713817845917,-500.0,0.00013698,2]
[323209557,1713817845927,-500.0,0.00013698,2]
[323209559,1713817845937,-500.0,0.00013698,2]
[323209560,1713817845946,-500.0,0.00013698,2]
[323209561,1713817845955,-500.0,0.00013698,2]
[323209562,1713817845965,-718.9,0.00013698,2]
[323209563,1713817845974,-500.0,0.00013698,2]
[323209564,1713817845984,-969.56,0.00013698,2]
[323209565,1713817845994,-500.0,0.00013698,2]
[323209566,1713817846003,-500.0,0.00013698,2]
[323209567,1713817846013,-500.0,0.00013698,2]
[323209568,1713817846022,-500.0,0.00013698,2]
[323209569,1713817846031,-501.97345591,0.00013698,2]
[323209570,1713817846041,-500.0,0.00013698,2]
[323209571,1713817846052,-500.0,0.00013698,2]
[323209572,1713817846061,-500.0,0.00013698,2]
[323209573,1713817846070,-297.30097501,0.00013698,2]
[323209574,1713817846082,-1375.45,0.00013698,2]
[323209575,1713817846091,-500.0,0.00013698,2]
[323209576,1713817846101,-643.12,0.00013698,2]
[323209577,1713817846110,-1338.67,0.00013698,2]
[323209578,1713817846119,-500.85923768,0.00013698,2]
[323209579,1713817846129,-1299.86,0.00013698,2]
[323209580,1713817846138,-1086.66,0.00013698,2]
[323209581,1713817846147,-500.0,0.00013698,2]
[323209582,1713817846157,-500.58644697,0.00013698,2]
[323209583,1713817846166,-1120.16,0.00013698,2]
[323209584,1713817846175,-960.06,0.00013698,2]
[323209585,1713817846185,-501.95412479,0.00013698,2]
[323209586,1713817846195,-534.21,0.00013698,2]
[323209587,1713817846204,-500.0,0.00013698,2]
[323209588,1713817846213,-753.19,0.00013698,2]
[323209589,1713817846222,-500.0,0.00013698,2]
[323209590,1713817846231,-500.0,0.00013698,2]
[323209591,1713817846241,-514.10133612,0.00013698,2]
[323209592,1713817846250,-500.0,0.00013698,2]
[323209593,1713817846259,-514.37697473,0.00013698,2]
[323209594,1713817846268,-811.84,0.00013698,2]
[323209595,1713817846278,-500.0,0.00013698,2]
[323209596,1713817846287,-500.0,0.00013698,2]
[323209597,1713817846296,-546.54,0.00013698,2]
[323209598,1713817846306,-500.0,0.00013698,2]
[323209599,1713817846315,-1092.53,0.00013698,2]
[323209600,1713817846324,-500.0,0.00013698,2]
[323209601,1713817846334,-1749.53,0.00013698,2]
[323209602,1713817846343,-500.0,0.00013698,2]
[323209603,1713817846352,-500.65819533,0.00013698,2]
[323209604,1713817846361,-500.85589916,0.00013698,2]
[323209605,1713817846371,-500.0,0.00013698,2]
[323209606,1713817846380,-500.0,0.00013698,2]
[323209607,1713817846389,-501.72830549,0.00013698,2]
[323209608,1713817846399,-500.0,0.00013698,2]
[323209609,1713817846409,-500.0,0.00013698,2]
[323209611,1713817846418,-500.0,0.00013698,2]
[323209613,1713817846427,-1083.17,0.00013698,2]
[323209615,1713817846438,-500.0,0.00013698,2]
[323209617,1713817846447,-500.0,0.00013698,2]
[323209619,1713817846457,-500.0,0.00013698,2]
[323209621,1713817846466,-500.0,0.00013698,2]
[323209623,1713817846475,-1474.11,0.00013698,2]
[323209625,1713817846485,-1939.69,0.00013698,2]
[323209626,1713817846494,-1150.37,0.00013698,2]
[323209628,1713817846504,-500.0,0.00013698,2]
[323209629,1713817846513,-1191.57,0.00013698,2]
[323209630,1713817846523,-500.0,0.00013698,2]
[323209631,1713817846532,-500.0,0.00013698,2]
[323209632,1713817846541,-500.7036542,0.00013698,2]
[323209633,1713817846551,-500.0,0.00013698,2]
[323209634,1713817846560,-500.0,0.00013698,2]
[323209635,1713817846569,-500.0,0.00013698,2]
[323209636,1713817846578,-500.0,0.00013698,2]
[323209637,1713817846587,-873.37,0.00013698,2]
[323209638,1713817846596,-501.19716486,0.00013698,2]
[323209639,1713817846605,-500.0,0.00013698,2]
[323209640,1713817846614,-500.0,0.00013698,2]
[323209641,1713817846623,-548.01,0.00013698,2]
[323209642,1713817846632,-1713.21,0.00013698,2]
[323209643,1713817846642,-860.95,0.00013698,2]
[323209644,1713817846650,-778.64,0.00013698,2]
[323209645,1713817846659,-500.0,0.00013698,2]
[323209646,1713817846669,-583.38,0.00013698,2]
[323209647,1713817846678,-500.69035047,0.00013698,2]
[323209648,1713817846688,-983.83,0.00013698,2]
[323209649,1713817846697,-500.0,0.00013698,2]
[323209650,1713817846706,-650.08,0.00013698,2]
[323209651,1713817846716,-500.0,0.00013698,2]
[323209652,1713817846726,-500.0,0.00013698,2]
[323209653,1713817846736,-848.86,0.00013698,2]
[323209654,1713817846745,-500.0,0.00013698,2]
[323209655,1713817846754,-991.23,0.00013698,2]
[323209656,1713817846765,-1645.42,0.00013698,2]
[323209657,1713817846775,-500.0,0.00013698,2]
[323209658,1713817846785,-919.27,0.00013698,2]
[323209659,1713817846795,-849.94,0.00013698,2]
[323209660,1713817846805,-965.68,0.00013698,2]
[323209661,1713817846815,-500.0,0.00013698,2]
[323209662,1713817846824,-500.0,0.00013698,2]
[323209663,1713817846836,-648.35,0.00013698,2]
[323209664,1713817846850,-535.69154077,0.00013698,2]
[323209665,1713817846860,-500.0,0.00013698,2]
[323209666,1713817846869,-653.61,0.00013698,2]
[323209667,1713817846878,-849.99,0.00013698,2]
[323209668,1713817846888,-500.0,0.00013698,2]
[323209669,1713817846897,-872.51,0.00013698,2]
[323209670,1713817846907,-500.43477927,0.00013698,2]
[323209671,1713817846916,-586.1,0.00013698,2]
[323209672,1713817846928,-500.0,0.00013698,2]
[323209673,1713817846940,-883.24,0.00013698,2]
[323209674,1713817846950,-500.0,0.00013698,2]
[323209675,1713817846959,-500.0,0.00013698,2]
[323209676,1713817846969,-643.67,0.00013698,2]
[323209677,1713817846978,-500.0,0.00013698,2]
[323209678,1713817846988,-1446.77,0.00013698,2]
[323209679,1713817846997,-500.0,0.00013698,2]
[323209680,1713817847007,-668.79,0.00013698,2]
[323209681,1713817847016,-500.0,0.00013698,2]
[323209682,1713817847025,-1711.08,0.00013698,2]
[323209683,1713817847035,-500.0,0.00013698,2]
[323209684,1713817847045,-500.0,0.00013698,2]
[323209685,1713817847054,-500.0,0.00013698,2]
[323209686,1713817847063,-500.0,0.00013698,2]